bitfinex/quotes_ETHUSD_20230109
["timestamp","ask_amount","ask_price","bid_price","bid_amount"]
[1673282658479,2.79556977,1339.7,1339.4,0.75000236]
[1673282658695,7.68760018,1339.7,1339.4,0.75000236]
[1673282658978,2.21263441,1339.6,1339.4,14.93122]
[1673282659175,2.21263441,1339.6,1339.4,14.99491018]
[1673282659393,3.88997627,1339.6,1339.4,22.46093018]
[1673282659854,1.11822791,1339.5,1339.4,7.52933018]
[1673282660044,7.71166314,1339.6,1339.4,7.52933018]
[1673282660045,8.855116,1339.6,1339.4,14.99535018]
[1673282660692,8.855116,1339.6,1339.4,7.52933018]
[1673282661322,2.2131637,1339.5,1339.4,7.52933018]
[1673282662070,2.2131637,1339.5,1339.4,14.99535018]
[1673282662224,2.2131637,1339.5,1339.4,22.46137018]
[1673282662429,2.2131637,1339.5,1339.4,14.99535018]
[1673282663745,24.79276125,1339.5,1339.4,0.06104888]
[1673282663940,29.65044111,1339.5,1339.3,0.10318839]
[1673282664155,6.01099688,1339.4,1339.3,0.10318839]
[1673282664362,20.96826183,1339.4,1339.3,0.10318839]
[1673282664539,24.95956225,1339.4,1339.3,0.10318839]
[1673282665093,26.63715492,1339.4,1339.3,0.10318839]
[1673282665305,26.97155124,1339.4,1339.3,0.10318839]
[1673282665484,25.51875447,1339.4,1339.3,0.10318839]
[1673282665700,37.11452639,1339.4,1339.3,0.10318839]
[1673282666116,38.79143784,1339.4,1339.3,0.10318839]
[1673282667788,38.23133784,1339.4,1339.3,0.10318839]
[1673282668065,35.99489002,1339.4,1339.3,0.10318839]
[1673282669686,37.11220168,1339.4,1339.3,0.10318839]
[1673282670328,35.99489002,1339.4,1339.3,0.10318839]
[1673282671102,37.11191086,1339.4,1339.3,0.10318839]
[1673282672263,46.88899033,1339.4,1339.3,0.10318839]
[1673282672429,49.6845501,1339.4,1339.3,0.10318839]
[1673282672621,45.15798616,1339.4,1339.3,0.10318839]
[1673282673404,42.36242639,1339.4,1339.3,0.10318839]
[1673282673617,45.15798616,1339.4,1339.3,0.10318839]
[1673282674112,42.36242639,1339.4,1339.3,0.10318839]
[1673282674457,44.03684493,1339.4,1339.3,0.10318839]
[1673282675675,48.56340887,1339.4,1339.3,0.10318839]
[1673282676134,44.03684493,1339.4,1339.3,0.10318839]
[1673282676337,49.12350887,1339.4,1339.3,0.10318839]
[1673282677185,44.59694493,1339.4,1339.3,0.10318839]
[1673282678193,44.59694493,1339.4,1339.2,0.09676872]
[1673282678194,7.97,1339.3,1339.2,0.09676872]
[1673282678404,23.93036007,1339.3,1339.2,0.09676872]
[1673282678631,46.33010007,1339.3,1339.2,0.09676872]
[1673282679067,50.85666401,1339.3,1339.2,0.09676872]
[1673282679325,49.68826023,1339.3,1339.2,0.09676872]
[1673282679458,46.33010347,1339.3,1339.2,0.09676872]
[1673282679661,46.89270046,1339.3,1339.2,0.09676872]
[1673282680121,48.56655248,1339.3,1339.2,0.09676872]
[1673282680341,46.33010466,1339.3,1339.2,0.09676872]
[1673282680520,48.56655248,1339.3,1339.2,0.09676872]
[1673282682135,46.33010466,1339.3,1339.2,0.09676872]
[1673282682766,48.56655248,1339.3,1339.2,0.09676872]
[1673282682953,53.09311642,1339.3,1339.2,0.09676872]
[1673282683346,47.23855248,1339.3,1339.2,0.09676872]
[1673282683688,45.56470046,1339.3,1339.2,0.09676872]
[1673282683907,50.0912644,1339.3,1339.2,0.09676872]
[1673282684114,51.76375075,1339.3,1339.2,0.09676872]
[1673282684653,53.0912644,1339.3,1339.2,0.09676872]
[1673282684966,34.44334065,1339.1,1338.9,0.10470497]
[1673282685135,31.03341064,1339.0,1338.9,0.10470497]
[1673282685339,32.173841,1339.0,1338.9,0.10470497]
[1673282685552,31.28863559,1339.0,1338.9,0.10470497]
[1673282685805,27.78863559,1339.0,1338.9,0.10470497]
[1673282686019,9.53432375,1339.0,1338.9,0.10470497]
[1673282686184,5.38388559,1339.0,1338.9,0.10470497]
[1673282686596,3.82288559,1339.0,1338.9,22.51113497]
[1673282686863,3.79766064,1339.0,1338.9,15.10337385]
[1673282687450,3.79766064,1339.0,1338.9,22.57218385]
[1673282687658,0.1277656,1339.1,1338.9,22.57218385]
[1673282687860,0.10254065,1339.1,1338.9,25.58677787]
[1673282688546,0.10254065,1339.1,1338.9,31.44067264]
[1673282688723,0.10254065,1339.1,1339.0,1.338]
[1673282688927,0.10034242,1339.1,1339.0,28.26564477]
[1673282689139,0.10034242,1339.1,1339.0,27.30379888]
[1673282689425,0.10034242,1339.1,1339.0,32.34156216]
[1673282689563,0.10034242,1339.1,1339.0,36.86631051]
[1673282689775,0.10034242,1339.1,1339.0,31.84156216]
[1673282690094,0.10034242,1339.1,1339.0,35.34156216]
[1673282690308,0.10034242,1339.1,1339.0,49.7624261]
[1673282690309,4.242e-05,1339.1,1339.0,49.7624261]
[1673282690522,4.242e-05,1339.1,1339.0,45.23586216]
[1673282690696,4.242e-05,1339.1,1339.0,49.7624261]
[1673282691158,4.242e-05,1339.1,1339.0,41.7624261]
[1673282691588,4.242e-05,1339.1,1339.0,37.23586216]
[1673282691919,4.242e-05,1339.1,1339.0,42.47900169]
[1673282692113,4.242e-05,1339.1,1339.0,37.95243775]
[1673282692332,4.242e-05,1339.1,1339.0,37.23586216]
[1673282692501,4.242e-05,1339.1,1339.0,37.95260141]
[1673282692699,4.242e-05,1339.1,1339.0,37.95259655]
[1673282693176,4.242e-05,1339.1,1339.0,37.23586216]
[1673282693328,4.242e-05,1339.1,1339.0,32.97950498]
[1673282694527,4.242e-05,1339.1,1339.0,32.978855]
[1673282694697,4.242e-05,1339.1,1339.0,32.97950498]
[1673282696509,4.242e-05,1339.1,1339.0,33.69650413]
[1673282697645,4.242e-05,1339.1,1339.0,40.77832158]
[1673282697862,4.242e-05,1339.1,1339.0,40.21802158]
[1673282698086,4.242e-05,1339.1,1339.0,41.321828]
[1673282700408,4.242e-05,1339.1,1339.0,40.21802158]
[1673282700625,4.242e-05,1339.1,1339.0,35.69145764]
[1673282700959,4.242e-05,1339.1,1339.0,40.21802158]
[1673282701271,4.242e-05,1339.1,1339.0,41.321828]
[1673282701996,4.242e-05,1339.1,1339.0,41.32117802]
[1673282702147,4.242e-05,1339.1,1339.0,41.321828]
[1673282702358,4.242e-05,1339.1,1339.0,43.71675296]
[1673282702624,2.78801352,1339.6,1339.2,29.86744]
[1673282702936,1.11520541,1339.6,1339.4,29.86408]
[1673282703115,2.24086315,1339.6,1339.4,29.92512888]
[1673282703873,3.91367126,1339.6,1339.4,29.92512888]
[1673282705296,2.81323847,1339.7,1339.5,1.326]
[1673282705466,2.81323847,1339.7,1339.6,31.33024]
[1673282705467,1.11520541,1339.7,1339.6,31.33024]
[1673282705695,1.11520541,1339.7,1339.6,31.39128888]
[1673282705895,2.21156468,1339.7,1339.6,31.39128888]
[1673282706098,2.21156468,1339.7,1339.6,22.58837888]
[1673282707288,2.78801352,1339.7,1339.6,22.58837888]
[1673282707498,3.88437279,1339.7,1339.6,22.58837888]
[1673282707880,2.21156468,1339.7,1339.6,22.58837888]
[1673282708296,2.2111888,1339.7,1339.6,22.58837888]
[1673282709567,1.11520541,1339.7,1339.6,22.58837888]
[1673282709884,1.25391166,1339.8,1339.6,27.42637888]
[1673282710108,0.1582366,1339.8,1339.7,25.13568789]
[1673282710300,0.1582366,1339.8,1339.7,26.52273677]
[1673282712238,1.27344201,1339.8,1339.7,23.78009888]
[1673282712392,0.1582366,1339.8,1339.7,23.78009888]
[1673282716699,0.1602366,1339.8,1339.7,23.7794489]
[1673282716908,0.1582366,1339.8,1339.7,23.78009888]
[1673282720292,0.1582366,1339.8,1339.7,22.45409888]
[1673282721676,0.1582366,1339.8,1339.7,25.59265977]
[1673282722073,0.1582366,1339.8,1339.7,22.45409888]
[1673282725595,0.1582366,1339.8,1339.7,25.95409888]
[1673282726185,0.1582366,1339.8,1339.7,25.95175899]
[1673282726644,0.1582366,1339.8,1339.7,28.95175899]
[1673282730749,0.1582366,1339.8,1339.7,25.45175899]
[1673282731698,2.66478621,1339.8,1339.7,7.52305899]
[1673282731864,1.40078621,1339.8,1339.7,7.52305899]
[1673282732076,2.54380616,1339.8,1339.7,0.06104888]
[1673282732301,2.54380616,1339.8,1339.6,22.45522888]
[1673282732644,1.40078621,1339.8,1339.6,22.45522888]
[1673282733950,2.54440953,1339.8,1339.6,22.45522888]
[1673282734169,1.40078621,1339.8,1339.6,22.45522888]
[1673282734679,2.94625012,1339.8,1339.6,22.45522888]
[1673282734805,1.27344201,1339.8,1339.6,22.45522888]
[1673282735017,2.94625012,1339.8,1339.6,22.45522888]
[1673282735665,1.11520541,1339.7,1339.6,22.45522888]
[1673282736480,2.25942751,1339.7,1339.6,22.45522888]
[1673282741152,3.93223562,1339.7,1339.6,22.45522888]
[1673282741476,2.78801352,1339.7,1339.6,22.45522888]
[1673282741676,2.81703021,1339.7,1339.6,22.45522888]
[1673282742246,2.81903021,1339.7,1339.6,22.4545789]
[1673282742456,5.04744102,1339.7,1339.6,14.99031888]
[1673282742619,5.07266597,1339.7,1339.6,22.45522888]
[1673282742830,2.84225516,1339.7,1339.6,22.45522888]
[1673282743035,5.04744102,1339.7,1339.6,22.45522888]
[1673282743295,5.07266597,1339.7,1339.6,22.45522888]
[1673282744202,2.84225516,1339.7,1339.6,22.45522888]
[1673282744411,2.81703021,1339.7,1339.6,22.45522888]
[1673282745584,5.04744102,1339.7,1339.6,22.45522888]
[1673282745789,5.07266597,1339.7,1339.6,22.45522888]
[1673282746021,6.99806386,1339.7,1339.6,0.0603989]
[1673282746237,13.57000305,1339.7,1339.4,29.97465888]
[1673282746551,1.67706882,1339.5,1339.4,0.06104888]
[1673282746777,4.04737345,1339.5,1339.3,14.99027231]
[1673282746978,4.04737394,1339.5,1339.4,14.93204]
[1673282747188,3.94061968,1339.5,1339.4,22.45754231]
[1673282747345,2.26555086,1339.5,1339.4,22.45554231]
[1673282747556,2.26355086,1339.5,1339.4,22.45754231]
[1673282749885,1.11806685,1339.5,1339.4,22.45754231]
[1673282750336,3.35523567,1339.6,1339.4,22.45754231]
[1673282750821,5.1955716,1339.6,1339.4,22.45754231]
[1673282751025,1.11806685,1339.5,1339.4,22.45754231]
[1673282752856,3.38046062,1339.6,1339.4,22.45754231]
[1673282753062,3.35523567,1339.6,1339.4,22.45754231]
[1673282753401,2.79513567,1339.6,1339.4,22.45754231]
[1673282753608,4.25569553,1339.6,1339.4,22.45754231]
[1673282755078,2.57862671,1339.6,1339.4,22.45754231]
[1673282755650,4.25569553,1339.6,1339.4,22.45754231]
[1673282756634,4.25769553,1339.6,1339.4,22.45554231]
[1673282756804,4.25569553,1339.6,1339.4,22.45754231]
[1673282758280,2.79513567,1339.6,1339.4,22.45754231]
[1673282758535,3.97445571,1339.6,1339.4,22.45754231]
[1673282758749,2.79513567,1339.6,1339.4,22.45754231]
[1673282759042,1.11806685,1339.5,1339.4,22.45754231]
[1673282760073,2.85633814,1339.6,1339.4,22.45754231]
[1673282760074,2.82036062,1339.6,1339.4,22.45754231]
[1673282760435,8.03525151,1339.6,1339.4,22.45754231]
[1673282760654,8.06047646,1339.6,1339.4,22.45754231]
[1673282761168,1.11806685,1339.5,1339.4,22.45754231]
[1673282761329,6.94240961,1339.6,1339.4,22.45754231]
[1673282761330,4.56047646,1339.6,1339.4,22.45754231]
[1673282761538,4.53525151,1339.6,1339.4,22.45754231]
[1673282761786,2.85818269,1339.6,1339.4,22.45754231]
[1673282762185,4.53525151,1339.6,1339.4,22.45754231]
[1673282763473,0.45352515,1339.5,1339.4,14.99152231]
[1673282763642,4.42796223,1339.5,1339.4,0.05948231]
[1673282763860,11.33438832,1339.5,1339.2,3.0]
[1673282764070,1.11709884,1339.3,1339.2,3.0]
[1673282764302,2.29657713,1339.3,1339.2,3.0]
[1673282764525,1.11709884,1339.3,1339.2,3.0]
[1673282764689,10.28400205,1339.4,1339.2,3.0]
[1673282764904,6.0414748,1339.4,1339.2,3.0]
[1673282765115,13.5075548,1339.4,1339.1,24.35528231]
[1673282765360,16.05089884,1339.3,1339.1,24.35528231]
[1673282765554,8.60899379,1339.3,1339.1,24.35528231]
[1673282765899,4.36343832,1339.3,1339.1,0.05948231]
[1673282766111,4.36343832,1339.3,1339.0,42.83431551]
[1673282766112,11.80479337,1339.3,1339.0,42.83431551]
[1673282766339,9.83674722,1339.3,1339.1,3.0]
[1673282766643,4.93998443,1339.3,1339.1,3.0]
[1673282766811,4.91475948,1339.3,1339.1,10.46756]
[1673282767158,4.91475948,1339.3,1339.1,10.52704231]
[1673282767533,4.91475948,1339.3,1339.1,25.46244231]
[1673282767743,4.91475948,1339.3,1339.1,17.99474231]
[1673282767942,3.79766064,1339.3,1339.1,25.45971149]
[1673282768152,2.81797205,1339.4,1339.1,25.45971149]
[1673282768401,2.7927471,1339.4,1339.1,25.45971149]
[1673282768633,3.97136054,1339.4,1339.1,25.45971149]
[1673282768845,0.39713605,1339.3,1339.1,25.45971149]
[1673282769165,2.7927471,1339.4,1339.1,25.45971149]
[1673282769307,3.97111606,1339.4,1339.1,25.45971149]
[1673282770921,7.7687767,1339.4,1339.1,25.45971149]
[1673282771141,6.61563269,1339.4,1339.1,25.45971149]
[1673282771943,3.79766064,1339.3,1339.1,22.46244231]
[1673282772191,3.79766064,1339.3,1339.1,7.52704231]
[1673282772192,7.25197101,1339.3,1339.1,7.52704231]
[1673282772360,7.27719596,1339.3,1339.1,14.99474231]
[1673282772565,7.27719596,1339.3,1339.1,7.52704231]
[1673282772782,0.7277196,1339.2,1339.1,7.52704231]
[1673282773437,0.7277196,1339.2,1339.1,14.99474231]
[1673282773684,0.7277196,1339.2,1339.1,7.52704231]
[1673282774512,0.7277196,1339.2,1339.1,14.99474231]
[1673282775664,0.7277196,1339.2,1339.1,7.52704231]
[1673282777099,0.7277196,1339.2,1339.1,14.99474231]
[1673282777301,5.6015477,1339.3,1339.1,22.46244231]
[1673282778140,5.6015477,1339.3,1339.1,14.99474231]
[1673282779418,7.27719596,1339.3,1339.1,14.99474231]
[1673282780346,7.27719596,1339.3,1339.1,22.46244231]
[1673282780608,7.27719596,1339.3,1339.1,14.99474231]
[1673282780818,0.7277196,1339.2,1339.1,14.99474231]
[1673282781047,4.52538024,1339.2,1339.1,0.05948231]
[1673282781187,4.52538024,1339.2,1339.0,16.10280551]
[1673282781397,4.52538024,1339.2,1339.0,23.57079551]
[1673282782079,4.52538024,1339.2,1339.0,16.10274551]
[1673282782292,3.01453802,1339.1,1339.0,16.10274551]
[1673282782463,3.01453802,1339.1,1339.0,11.63475551]
[1673282782673,3.01453802,1339.1,1339.0,4.16701551]
[1673282782908,3.01453802,1339.1,1339.0,4.1075332]
[1673282783329,3.01453802,1339.1,1339.0,19.0440332]
[1673282783500,3.01453802,1339.1,1339.0,11.63526551]
[1673282783711,0.45253802,1339.1,1339.0,8.63526551]
[1673282784138,0.45253802,1339.1,1339.0,16.10351551]
[1673282784400,0.45253802,1339.1,1339.0,8.63526551]
[1673282785235,1.71653802,1339.1,1339.0,8.63526551]
[1673282785418,0.45253802,1339.1,1339.0,8.63526551]
[1673282785631,0.45253802,1339.1,1339.0,23.57176551]
[1673282785839,6.99870403,1339.2,1339.0,23.57176551]
[1673282786093,0.02522495,1339.2,1339.0,23.57176551]
[1673282786309,10.81417205,1339.3,1339.0,23.57176551]
[1673282786476,14.61183269,1339.3,1339.0,23.57176551]
[1673282786667,12.93618443,1339.3,1339.0,23.57176551]
[1673282788254,9.13852379,1339.3,1339.0,23.57176551]
[1673282788511,9.13852379,1339.3,1339.0,26.80510042]
[1673282789032,8.02142495,1339.3,1339.0,26.80510042]
[1673282789187,0.02522495,1339.3,1339.0,26.80510042]
[1673282789399,1.11709884,1339.3,1339.0,26.80510042]
[1673282790821,2.29960796,1339.3,1339.0,26.80510042]
[1673282790973,1.11709884,1339.3,1339.0,26.80510042]
[1673282791862,2.29971441,1339.3,1339.0,26.80510042]
[1673282792441,2.85991441,1339.3,1339.0,26.80510042]
[1673282792654,2.85991441,1339.3,1339.0,23.57176551]
[1673282792655,1.67729884,1339.3,1339.0,23.57176551]
[1673282792912,1.11709884,1339.3,1339.0,8.63526551]
[1673282793123,2.299786,1339.3,1339.0,23.57176551]
[1673282793288,3.97543426,1339.3,1339.0,16.10351551]
[1673282793497,3.97743426,1339.3,1339.0,23.56976551]
[1673282793765,3.97743426,1339.3,1339.0,23.57176551]
[1673282793766,5.90940939,1339.3,1339.0,23.57176551]
[1673282793922,4.75194718,1339.3,1339.0,23.57176551]
[1673282794131,2.30020816,1339.2,1339.0,16.10351551]
[1673282794365,2.30020816,1339.2,1339.0,23.57176551]
[1673282794588,3.49708905,1339.2,1339.0,23.57176551]
[1673282794794,1.11709884,1339.2,1339.0,23.57176551]
[1673282794984,2.30019395,1339.2,1339.0,23.57176551]
[1673282795195,6.09785459,1339.2,1339.0,16.10351551]
[1673282795413,6.61563269,1339.2,1339.0,16.10351551]
[1673282795615,4.93998443,1339.2,1339.0,16.10351551]
[1673282795827,2.70332883,1339.2,1339.0,16.10351551]
[1673282796052,2.70332883,1339.2,1339.0,23.57176551]
[1673282796662,2.70332883,1339.2,1339.0,16.10351551]
[1673282797238,5.56248757,1339.2,1339.0,16.10351551]
[1673282797542,1.11709884,1339.1,1339.0,1.16701551]
[1673282797696,3.05098504,1339.1,1339.0,1.1075332]
[1673282797913,4.23652931,1339.1,1339.0,1.1075332]
[1673282798228,32.11093821,1339.1,1339.0,1.10486109]
[1673282798442,20.76566759,1339.1,1339.0,1.10486109]
[1673282798649,13.29796759,1339.1,1339.0,1.10486109]
[1673282798895,14.87456788,1339.1,1339.0,1.10486109]
[1673282799086,13.29796759,1339.1,1339.0,1.10486109]
[1673282799290,13.29796759,1339.1,1339.0,8.57311109]
[1673282799291,12.17932239,1339.1,1339.0,8.57311109]
[1673282799529,12.17932239,1339.1,1339.0,8.6325934]
[1673282799742,13.29796759,1339.1,1339.0,1.1643434]
[1673282799962,13.29796759,1339.1,1339.0,1.10486109]
[1673282800279,10.50240782,1339.1,1339.0,1.10486109]
[1673282800595,12.17934509,1339.1,1339.0,1.10486109]
[1673282801624,12.17934509,1339.1,1339.0,8.57311109]
[1673282801840,12.17899173,1339.1,1339.0,1.1643434]
[1673282802050,12.17899173,1339.1,1339.0,1.10486109]
[1673282803111,9.94289997,1339.1,1339.0,1.10486109]
[1673282803301,12.17899173,1339.1,1339.0,1.10486109]
[1673282804491,12.17899173,1339.1,1339.0,8.57311109]
[1673282804699,12.17899173,1339.1,1339.0,8.6325934]
[1673282804910,12.17899173,1339.1,1339.0,1.1643434]
[1673282805158,9.94289997,1339.1,1339.0,1.10486109]
[1673282805798,8.61689997,1339.1,1339.0,8.57311109]
[1673282806014,8.61689997,1339.1,1339.0,8.6325934]
[1673282806446,8.61689997,1339.1,1339.0,16.1008434]
[1673282806656,6.68301377,1339.1,1339.0,16.1008434]
[1673282807287,7.8011345,1339.1,1339.0,16.1008434]
[1673282808274,6.68301377,1339.1,1339.0,16.1008434]
[1673282809947,7.80115548,1339.1,1339.0,23.5690934]
[1673282811527,7.80115548,1339.1,1339.0,16.1008434]
[1673282812276,7.80115548,1339.1,1339.0,23.5690934]
[1673282814271,0.02522495,1339.1,1339.0,23.5690934]
[1673282814586,2.79472562,1339.2,1339.0,23.5690934]
[1673282814747,7.77641483,1339.2,1339.0,23.5690934]
[1673282814952,6.61761121,1339.2,1339.0,23.5690934]
[1673282815162,4.9410273,1339.2,1339.0,23.5690934]
[1673282815378,1.11814171,1339.2,1339.0,26.68331024]
[1673282815638,2.30214684,1339.2,1339.0,26.68331024]
[1673282817156,3.97873075,1339.2,1339.0,26.68331024]
[1673282820338,3.97873075,1339.2,1339.0,23.5690934]
[1673282822473,1.11814171,1339.1,1339.0,23.5690934]
[1673282823049,2.30235454,1339.1,1339.0,23.5690934]
[1673282824528,1.11814171,1339.1,1339.0,23.5690934]
[1673282824725,2.30235454,1339.1,1339.0,23.5690934]
[1673282825782,1.11814171,1339.1,1339.0,23.5690934]
[1673282826758,2.81995057,1339.2,1339.0,23.5690934]
[1673282826936,1.11814171,1339.1,1339.0,23.5690934]
[1673282827145,2.79472562,1339.2,1339.0,23.5690934]
[1673282827407,3.97871657,1339.2,1339.0,23.5690934]
[1673282827568,2.30213266,1339.2,1339.0,33.85278418]
[1673282827778,1.70180886,1339.3,1339.2,0.00375682]
[1673282828021,4.0221796,1339.3,1339.2,29.87231682]
[1673282828212,4.0221796,1339.3,1339.2,29.93179913]
[1673282828849,2.34559569,1339.3,1339.2,29.9296621]
[1673282829054,2.34559569,1339.3,1339.2,33.08942831]
[1673282829313,4.0221796,1339.3,1339.2,25.62228831]
[1673282830200,4.0221796,1339.3,1339.2,22.4625221]
[1673282830978,3.91267567,1339.3,1339.2,14.9953821]
[1673282831301,5.03165153,1339.3,1339.2,0.0611021]
[1673282831512,16.32111712,1339.3,1339.2,0.00161979]
[1673282831672,19.11736404,1339.3,1339.2,0.00161979]
[1673282832095,30.08394404,1339.3,1339.2,0.00161979]
[1673282832355,31.66054433,1339.3,1339.2,0.00161979]
[1673282832508,24.19396433,1339.3,1339.2,0.00161979]
[1673282833152,31.66054433,1339.3,1339.2,0.00161979]
[1673282833509,39.12712433,1339.3,1339.2,0.00161979]
[1673282834399,42.87412367,1339.3,1339.2,0.00161979]
[1673282834612,47.36069691,1339.3,1339.2,0.00161979]
[1673282834819,39.89411691,1339.3,1339.2,0.00161979]
[1673282835081,47.36069691,1339.3,1339.2,0.00161979]
[1673282835321,39.89411691,1339.3,1339.2,0.00161979]
[1673282835446,47.36069691,1339.3,1339.2,0.00161979]
[1673282845016,58.07689811,1339.3,1339.2,0.00161979]
[1673282845225,67.32397272,1339.3,1339.2,0.00161979]
[1673282846040,4.47,1339.1,1339.0,1.10486109]
[1673282846260,25.80437437,1339.1,1339.0,1.10486109]
[1673282846473,56.45543462,1339.1,1339.0,1.10486109]
[1673282846664,54.68112978,1339.1,1339.0,1.10486109]
[1673282846838,58.03214912,1339.1,1339.0,1.10486109]
[1673282847040,54.68112978,1339.1,1339.0,1.10486109]
[1673282847262,54.68112978,1339.1,1339.0,6.109e-05]
[1673282847263,58.00456584,1339.1,1339.0,6.109e-05]
[1673282847535,65.86735883,1339.1,1339.0,6.109e-05]
[1673282847682,65.86735882,1339.1,1339.0,6.109e-05]
[1673282849596,4.47,1338.9,1338.8,0.08754356]
[1673282849848,38.5109524,1338.9,1338.8,0.08754356]
[1673282850068,40.11277764,1338.9,1338.8,0.08754356]
[1673282850582,30.41183108,1338.9,1338.8,0.08754356]
[1673282851232,37.88064108,1338.9,1338.8,0.08754356]
[1673282852427,38.43867522,1338.9,1338.8,0.08754356]
[1673282852645,40.111888,1338.9,1338.8,0.08754356]
[1673282853080,42.9020587,1338.9,1338.8,0.08754356]
[1673282853330,46.86053347,1338.9,1338.8,0.08754356]
[1673282853910,42.34792214,1338.9,1338.8,0.08754356]
[1673282854132,46.86053209,1338.9,1338.8,0.08754356]
[1673282854542,51.32005891,1338.9,1338.8,0.08754356]
[1673282854785,46.80744896,1338.9,1338.8,0.08754356]
[1673282855038,44.01727826,1338.9,1338.8,0.08754356]
[1673282855387,8.40486595,1338.9,1338.8,0.08754356]
[1673282855583,6.27079903,1338.9,1338.8,7.55691356]
[1673282855840,3.92819341,1338.9,1338.8,0.14702587]
[1673282856028,3.92819341,1338.9,1338.8,0.08754356]
[1673282856029,3.90296846,1338.9,1338.8,0.08754356]
[1673282856245,3.90296846,1338.9,1338.8,7.55691356]
[1673282856454,3.90296846,1338.9,1338.8,7.61639587]
[1673282856796,3.90296846,1338.9,1338.8,0.14702587]
[1673282857103,3.90296846,1338.9,1338.8,0.08754356]
[1673282857321,3.90296846,1338.9,1338.8,1.6067912]
[1673282857642,3.90296846,1338.9,1338.8,9.0761612]
[1673282857840,3.90296846,1338.9,1338.8,9.13564351]
[1673282858058,3.90296846,1338.9,1338.8,0.14702587]
[1673282858390,6.2723806,1338.9,1338.8,0.08754356]
[1673282858622,10.09526619,1338.9,1338.8,0.08754356]
[1673282858943,17.56407619,1338.9,1338.8,0.08754356]
[1673282859224,15.22491599,1338.9,1338.8,0.08754356]
[1673282859404,13.55246652,1338.9,1338.8,0.08754356]
[1673282859617,15.12906681,1338.9,1338.8,0.08754356]
[1673282859850,13.55246652,1338.9,1338.8,0.08754356]
[1673282860013,8.84098775,1338.9,1338.8,0.08754356]
[1673282860200,16.30979775,1338.9,1338.8,0.08754356]
[1673282861214,31.24741775,1338.9,1338.8,0.08754356]
[1673282861784,32.50131394,1338.9,1338.8,0.08754356]
[1673282862257,35.80576349,1338.9,1338.8,0.08754356]
[1673282862436,39.13048411,1338.9,1338.8,0.08754356]
[1673282862619,40.80319757,1338.9,1338.8,0.08754356]
[1673282863299,40.80265019,1338.9,1338.8,0.08754356]
[1673282863517,39.13048411,1338.9,1338.8,0.08754356]
[1673282863678,40.80265019,1338.9,1338.8,0.08754356]
[1673282863880,39.13048411,1338.9,1338.8,0.08754356]
[1673282864521,37.49874802,1338.9,1338.8,0.08754356]
[1673282864983,35.80490878,1338.9,1338.8,0.08754356]
[1673282865205,17.56369394,1338.9,1338.8,0.08754356]
[1673282865511,25.03232058,1338.9,1338.8,0.08754356]
[1673282867065,23.77860775,1338.9,1338.8,0.08754356]
[1673282867275,8.84098775,1338.9,1338.8,0.08754356]
[1673282867499,16.30979775,1338.9,1338.8,0.08754356]
[1673282867718,23.77860775,1338.9,1338.8,0.08754356]
[1673282867858,31.19741775,1338.9,1338.8,0.08754356]
[1673282868185,34.69741775,1338.9,1338.8,0.08754356]
[1673282868386,37.96608243,1338.9,1338.8,0.08754356]
[1673282869963,34.46608243,1338.9,1338.8,0.08754356]
[1673282872114,41.25666432,1338.9,1338.8,0.08754356]
[1673282875019,45.72666432,1338.9,1338.8,0.08754356]
[1673282875231,45.95666432,1338.9,1338.8,0.08754356]
[1673282878997,39.16608243,1338.9,1338.8,0.08754356]
[1673282884677,22.61347405,1338.9,1338.8,0.08754356]
[1673282884890,15.14466405,1338.9,1338.8,0.08754356]
[1673282885115,30.08228405,1338.9,1338.8,0.08754356]
[1673282885565,15.14466405,1338.9,1338.8,0.08754356]
[1673282885733,22.61347405,1338.9,1338.8,0.08754356]
[1673282886506,3.5,1338.8,1338.7,0.09058211]
[1673282886656,6.2829844,1338.8,1338.7,0.09058211]
[1673282886874,28.71631935,1338.8,1338.7,0.09058211]
[1673282887330,22.88101026,1338.8,1338.7,0.09058211]
[1673282887504,25.04460999,1338.8,1338.7,0.09058211]
[1673282887733,32.51397999,1338.8,1338.7,0.09058211]
[1673282887961,34.82623074,1338.8,1338.7,0.09058211]
[1673282888169,36.46029165,1338.8,1338.7,0.09058211]
[1673282889721,36.45893231,1338.8,1338.7,0.09058211]
[1673282889943,37.01892719,1338.8,1338.7,0.09058211]
[1673282892076,3.5,1338.7,1338.6,0.10655745]
[1673282892312,38.01345395,1338.7,1338.6,0.10655745]
[1673282892482,39.67273981,1338.7,1338.6,0.10655745]
[1673282892687,36.32346844,1338.7,1338.6,0.10655745]
[1673282892903,39.11294194,1338.7,1338.6,0.10655745]
[1673282893515,38.78754318,1338.7,1338.6,0.10655745]
[1673282895131,41.01883583,1338.7,1338.6,0.10655745]
[1673282895892,11.73255187,1338.7,1338.6,0.10655745]
[1673282896059,2.95355863,1338.7,1338.6,7.57704745]
[1673282896273,4.04404341,1338.7,1338.6,0.16603976]
[1673282896482,2.92833368,1338.7,1338.6,0.10655745]
[1673282896970,4.04372057,1338.7,1338.6,0.10655745]
[1673282897176,4.04372057,1338.7,1338.6,0.87603138]
[1673282897398,2.37022611,1338.7,1338.6,23.28750138]
[1673282897601,2.37022611,1338.7,1338.6,23.34698369]
[1673282898978,2.8141063,1338.8,1338.6,23.34698369]
[1673282899195,2.8141063,1338.8,1338.7,9.80462837]
[1673282899196,2.78888135,1338.8,1338.7,9.80462837]
[1673282899448,4.07714697,1338.8,1338.7,9.86411068]
[1673282900489,2.96176008,1338.8,1338.7,9.86411068]
[1673282900811,5.19305273,1338.8,1338.7,0.05948231]
[1673282901031,6.33425672,1338.8,1338.6,15.10643976]
[1673282901190,4.07813426,1338.7,1338.6,15.10643976]
[1673282901536,4.07813426,1338.7,1338.6,7.63614976]
[1673282902115,4.07813426,1338.7,1338.6,0.16603976]
[1673282902483,4.07813426,1338.7,1338.6,0.10655745]
[1673282902484,2.9621868,1338.7,1338.6,0.10655745]
[1673282902702,12.66340945,1338.7,1338.6,0.10655745]
[1673282902870,11.01471322,1338.7,1338.6,0.10655745]
[1673282903294,5.21812888,1338.7,1338.6,0.10655745]
[1673282903506,5.21819358,1338.7,1338.6,0.10655745]
[1673282903911,14.81237386,1338.7,1338.6,0.10655745]
[1673282904268,32.56031466,1338.7,1338.6,0.10655745]
[1673282904511,34.19437557,1338.7,1338.6,0.10655745]
[1673282904849,26.72444557,1338.7,1338.6,0.10655745]
[1673282905055,25.09038466,1338.7,1338.6,0.10655745]
[1673282905305,5.21803571,1338.7,1338.6,15.04753745]
[1673282905589,5.21803571,1338.7,1338.6,7.63652976]
[1673282906345,5.21803571,1338.7,1338.6,15.10701976]
[1673282906536,5.21803571,1338.7,1338.6,22.57750976]
[1673282906748,5.21803571,1338.7,1338.6,15.10701976]
[1673282906953,5.21803571,1338.7,1338.6,17.67650392]
[1673282907160,5.21803571,1338.7,1338.6,10.20601392]
[1673282907370,2.98674306,1338.7,1338.6,10.20601392]
[1673282907618,2.96151811,1338.7,1338.6,10.20601392]
[1673282908014,2.96151811,1338.7,1338.6,2.73552392]
[1673282908281,2.96151811,1338.7,1338.6,10.14653161]
[1673282908282,4.0773089,1338.7,1338.6,10.14653161]
[1673282908461,2.96151811,1338.7,1338.6,10.20601392]